bitfinex-derivatives/quotes_ETHF0:USTF0_20250426
["timestamp","ask_amount","ask_price","bid_price","bid_amount"]
[1745698325955,1.10115,1815.7,1815.6,1.4011]
[1745698326156,2.45965,1815.7,1815.6,1.4011]
[1745698326547,2.45965,1815.7,1815.5,1.6615]
[1745698326548,1.10121,1815.6,1815.5,1.6615]
[1745698326857,1.10133,1815.4,1815.3,18.18065313]
[1745698327148,1.10139,1815.3,1815.2,6.2886]
[1745698327550,1.10139,1815.3,1815.2,1.6615]
[1745698327751,1.10151,1815.1,1815.0,1.4193]
[1745698327953,1.10151,1815.1,1815.0,3.0808]
[1745698330250,1.10157,1815.0,1814.9,7.30803883]
[1745698330647,4.76657,1815.0,1814.9,7.30803883]
[1745698330848,1.10163,1814.9,1814.8,1.6158]
[1745698331044,2.82483,1814.9,1814.8,1.6158]
[1745698331659,1.10163,1814.9,1814.8,1.6158]
[1745698333655,2.69443,1814.9,1814.8,1.6158]
[1745698334560,4.8006,1814.9,1814.6,1.4328]
[1745698334761,1.10175,1814.7,1814.6,2.8183]
[1745698335158,1.10173,1814.8,1814.6,3.92011]
[1745698336064,1.10173,1814.8,1814.7,1.6605]
[1745698336461,4.30948,1814.9,1814.7,2.76224]
[1745698336963,4.30948,1814.9,1814.8,2.76219]
[1745698337158,5.0592,1815.0,1814.8,2.76219]
[1745698337159,5.96093,1815.6,1815.0,1.10157]
[1745698337365,5.96093,1815.6,1815.1,6.1656]
[1745698337366,1.10149,1815.2,1815.1,6.1656]
[1745698337556,1.10149,1815.2,1815.1,7.8784]
[1745698338063,1.10149,1815.2,1815.1,6.4025]
[1745698341564,1.10157,1815.0,1814.9,3.2078]
[1745698341763,1.10157,1815.0,1814.9,4.8522]
[1745698342967,6.21215,1815.1,1814.9,5.95383]
[1745698343267,6.21215,1815.1,1815.0,3.1598]
[1745698349067,6.21215,1815.1,1815.0,6.3676]
[1745698350166,6.21215,1815.1,1815.0,3.2078]
[1745698350358,1.10163,1814.9,1814.8,1.4012]
[1745698350567,1.10163,1814.9,1814.8,1.7217]
[1745698350866,1.10169,1814.8,1814.7,3.2078]
[1745698351065,4.06859,1814.8,1814.7,4.9295]
[1745698351465,7.73459,1814.8,1814.7,4.9295]
[1745698351665,4.76769,1814.8,1814.7,4.9295]
[1745698351860,4.76769,1814.8,1814.7,6.4396]
[1745698352368,3.666,1814.8,1814.7,7.54135]
[1745698353069,1.10158,1815.0,1814.8,1.10164]
[1745698353369,1.10158,1815.0,1814.9,4.7978]
[1745698353869,4.76756,1815.1,1814.9,5.89943]
[1745698354064,4.76756,1815.1,1815.0,3.0318]
[1745698354272,4.76756,1815.1,1815.0,4.411]
[1745698355665,4.76739,1815.4,1815.2,1.10145]
[1745698355871,1.10139,1815.3,1815.2,3.2078]
[1745698356068,1.10139,1815.3,1815.2,4.8166]
[1745698356275,1.10139,1815.3,1815.2,5.91805]
[1745698356976,3.666,1815.4,1815.3,1.10139]
[1745698357277,3.666,1815.4,1815.3,9.39329]
[1745698358268,3.666,1815.4,1815.3,4.08529]
[1745698359776,1.10112,1815.8,1815.6,1.1012]
[1745698359974,1.10112,1815.8,1815.7,4.8372]
[1745698362877,4.24906,1815.9,1815.7,5.93835]
[1745698363079,4.24906,1815.9,1815.8,1.6042]
[1745698364395,8.148,1815.9,1815.5,3.2078]
[1745698364595,1.10121,1815.6,1815.5,3.2078]
[1745698365287,1.10145,1815.2,1815.1,4.4563]
[1745698365596,1.10145,1815.2,1815.1,3.2078]
[1745698366488,3.96375,1815.2,1815.1,3.2078]
[1745698371298,1.10157,1815.0,1814.9,3.2078]
[1745698372001,2.82267,1815.0,1814.9,3.2078]
[1745698375505,1.10157,1815.0,1814.9,3.2078]
[1745698376396,2.66267,1815.0,1814.9,3.2078]
[1745698378802,1.10163,1814.9,1814.8,1.7174]
[1745698379104,4.32443,1814.9,1814.8,1.7174]
[1745698379497,1.10169,1814.8,1814.7,3.2078]
[1745698379693,1.10194,1814.4,1814.3,7.7844]
[1745698380002,1.10194,1814.4,1814.3,3.0797]
[1745698380307,1.10194,1814.4,1814.3,1.5911]
[1745698380497,1.10206,1814.2,1814.1,4.6656]
[1745698381406,4.76806,1814.2,1814.1,3.2078]
[1745698381897,4.76806,1814.2,1814.1,4.8484]
[1745698382502,1.10212,1814.1,1814.0,12.61603883]
[1745698382802,2.81472,1814.1,1814.0,12.61603883]
[1745698383307,2.81472,1814.1,1814.0,7.30803883]
[1745698385101,2.81472,1814.1,1813.9,12.5132143]
[1745698385102,1.10218,1814.0,1813.9,1.6406]
[1745698385302,1.10236,1813.7,1813.6,3.2078]
[1745698385608,4.76932,1813.8,1813.6,3.2078]
[1745698385801,4.76932,1813.8,1813.7,1.5002]
[1745698386306,3.667,1813.8,1813.7,6.8082]
[1745698386503,3.667,1813.8,1813.7,8.497]
[1745698387005,4.7693,1813.8,1813.7,8.497]
[1745698388304,4.7693,1813.8,1813.7,6.9968]
[1745698389201,6.3783,1813.8,1813.7,1.6888]
[1745698389709,2.7113,1813.8,1813.7,1.6888]
[1745698389900,4.7693,1813.8,1813.7,1.6888]
[1745698393103,4.7693,1813.8,1813.7,6.9968]
[1745698394096,4.7693,1813.8,1813.7,1.6888]
[1745698395203,4.7693,1813.8,1813.7,6.9968]
[1745698396803,4.7693,1813.8,1813.7,5.308]
[1745698397002,1.1026,1813.3,1813.2,3.2078]
[1745698397204,1.1026,1813.3,1813.2,4.7728]
[1745698398908,61.867,1813.9,1813.3,1.10256]
[1745698398909,5.1558,1813.7,1813.3,1.10256]
[1745698399106,5.1558,1813.7,1813.4,3.2078]
[1745698399306,6.25822,1813.7,1813.5,1.7057]
[1745698399506,1.10242,1813.6,1813.5,1.7057]
[1745698400106,1.10242,1813.6,1813.5,7.0137]
[1745698401299,1.10242,1813.6,1813.5,2.65862569]
[1745698401503,2.81382,1813.6,1813.5,2.65862569]
[1745698401698,2.81382,1813.6,1813.5,4.26872569]
[1745698402713,2.81382,1813.6,1813.5,2.65862569]
[1745698403308,1.10254,1813.4,1813.3,1.6101]
[1745698403610,4.77054,1813.4,1813.3,1.6101]
[1745698403806,4.77054,1813.4,1813.3,5.9205]
[1745698403807,3.668,1813.4,1813.3,5.9205]
[1745698404013,3.668,1813.4,1813.3,4.8179]
[1745698404207,3.668,1813.4,1813.3,11.2285]
[1745698405011,3.668,1813.4,1813.3,10.1259]
[1745698405708,3.668,1813.4,1813.3,11.2285]
[1745698408119,3.668,1813.6,1813.5,1.10246]
[1745698408418,3.668,1813.6,1813.5,4.31026]
[1745698408606,4.77042,1813.6,1813.5,4.31026]
[1745698408810,3.668,1813.6,1813.5,3.2078]
[1745698409011,4.77042,1813.6,1813.5,3.2078]
[1745698409213,4.77042,1813.6,1813.5,11.19748]
[1745698409513,3.668,1813.6,1813.5,11.19748]
[1745698420439,6.5099,1813.9,1813.8,1.1023]
[1745698420624,3.668,1813.9,1813.8,1.1023]
[1745698420825,3.668,1814.0,1813.9,1.10224]
[1745698421326,4.77019,1814.0,1813.8,8.10365]
[1745698421519,3.668,1814.0,1813.8,7.0014]
[1745698421724,6.44882,1814.0,1813.9,1.6934]
[1745698422230,6.44882,1814.0,1813.9,7.0014]
[1745698423534,5.3466,1814.0,1813.9,7.0014]
[1745698423718,6.44878,1814.0,1813.9,7.0014]
[1745698424030,5.3466,1814.0,1813.9,7.0014]
[1745698424531,6.44878,1814.0,1813.9,7.0014]
[1745698424733,6.44878,1814.0,1813.9,5.308]
[1745698424734,11.44878,1814.0,1813.9,5.308]
[1745698425129,1.1023,1813.8,1813.7,3.2078]
[1745698425730,2.5959,1813.8,1813.7,3.2078]
[1745698426131,2.5959,1813.8,1813.7,10.2145]
[1745698428927,2.5959,1813.8,1813.7,7.0067]
[1745698429834,2.5959,1813.8,1813.7,5.308]
[1745698430229,1.10236,1813.7,1813.6,3.2078]
[1745698430434,4.76936,1813.7,1813.6,3.2078]
[1745698433733,6.18806,1813.7,1813.6,3.2078]
[1745698437038,7.77516,1813.7,1813.6,3.2078]
[1745698438634,1.10242,1813.6,1813.5,5.308]
[1745698439439,2.71952,1813.6,1813.5,5.308]
[1745698439639,1.10242,1813.6,1813.5,5.308]
[1745698440640,2.71952,1813.6,1813.5,5.308]
[1745698442142,2.71952,1813.6,1813.5,6.9607]
[1745698443939,2.71952,1813.6,1813.5,5.308]
[1745698444345,1.10259,1813.4,1813.2,4.31044]
[1745698444541,4.76859,1813.4,1813.3,1.6958]
[1745698446035,1.1026,1813.3,1813.2,8.5158]
[1745698446236,2.594,1813.3,1813.2,3.2078]
[1745698446538,4.2576,1813.3,1813.2,3.2078]
[1745698446736,1.4041,1813.5,1813.2,9.31044]
[1745698446937,1.10257,1813.4,1813.3,4.4414]
[1745698447543,1.10257,1813.4,1813.3,1.61]
[1745698447735,1.1026,1813.3,1813.2,8.5158]
[1745698448044,4.7696,1813.3,1813.2,8.5158]
[1745698448243,4.7696,1813.3,1813.2,3.2078]
[1745698448437,6.1281,1813.3,1813.2,3.2078]
[1745698449237,6.1281,1813.3,1813.2,8.5158]
[1745698449939,6.1281,1813.3,1813.2,5.308]
[1745698450146,1.10273,1813.1,1813.0,3.2078]
[1745698450334,3.2078,1813.1,1812.7,3.2078]
[1745698450534,1.10303,1812.6,1812.5,12.66221548]
[1745698450738,7.97783,1812.6,1812.5,23.1887879]
[1745698451134,7.97783,1812.6,1812.5,28.4967879]
[1745698451635,6.8748,1812.6,1812.5,28.4967879]
[1745698451844,3.2078,1812.6,1812.5,28.4967879]
[1745698453444,3.2078,1812.6,1812.5,29.5998779]
[1745698453648,3.2078,1812.6,1812.5,17.46838883]
[1745698454249,4.31083,1812.6,1812.5,14.50198883]
[1745698454545,5.71843,1812.6,1812.5,5.58381641]
[1745698456242,5.71843,1812.6,1812.5,3.83077641]
[1745698456444,7.40693,1812.6,1812.5,3.83077641]
[1745698456650,5.71843,1812.6,1812.5,12.74894883]
[1745698456947,6.8758,1812.6,1812.5,12.74894883]
[1745698457446,7.97883,1812.6,1812.5,12.74894883]
[1745698457849,7.97883,1812.6,1812.5,3.83077641]
[1745698460243,7.97267156,1812.6,1812.5,12.74894883]
[1745698462153,7.97267156,1812.6,1812.5,3.83077641]
[1745698462357,9.58177156,1812.6,1812.5,3.83077641]
[1745698463154,9.58177156,1812.6,1812.5,0.27581641]
[1745698468961,1.10315,1812.4,1812.3,0.27581641]
[1745698469268,4.31095,1812.4,1812.3,1.92231641]
[1745698469454,4.31095,1812.4,1812.3,10.84048883]
[1745698469762,3.2078,1812.4,1812.3,16.94369883]
[1745698470261,3.2078,1812.4,1812.3,22.25169883]
[1745698471962,4.31095,1812.4,1812.3,21.14848883]
[1745698472968,4.31095,1812.4,1812.3,16.14848883]
[1745698473965,3.678,1812.9,1812.5,0.27581641]
[1745698474166,1.10297,1812.7,1812.6,3.1607]
[1745698474570,1.10297,1812.7,1812.6,7.76802242]
[1745698475969,1.10294,1812.8,1812.6,8.87105242]
[1745698476165,1.10294,1812.8,1812.7,1.7026]
[1745698476368,3.678,1812.9,1812.7,3.08137641]
[1745698476565,4.78085,1812.9,1812.7,7.68869883]
[1745698476768,4.78085,1812.9,1812.8,3.1681]
[1745698477168,4.78085,1812.9,1812.8,13.08342242]
[1745698480867,4.78085,1812.9,1812.8,11.61792242]
[1745698481671,4.78085,1812.9,1812.8,7.0106]
[1745698482571,6.49125,1812.9,1812.8,7.0106]
[1745698485482,4.78085,1812.9,1812.8,7.0106]
[1745698485788,4.78085,1812.9,1812.8,11.61792242]
[1745698488084,4.78085,1812.9,1812.8,5.58381641]
[1745698488388,6.34495,1812.9,1812.8,5.58381641]
[1745698488682,6.34495,1812.9,1812.8,5.308]
[1745698489068,5.2421,1812.9,1812.7,0.27581641]
[1745698489273,7.23031,1812.8,1812.7,0.27581641]
[1745698494688,4.02251,1812.8,1812.7,0.27581641]
[1745698494887,1.10302,1812.7,1812.5,4.58670641]
[1745698495083,2.45843,1812.8,1812.6,1.93381641]
[1745698495283,3.678,1812.8,1812.7,5.58381641]
[1745698495489,3.678,1812.8,1812.7,8.16878641]
[1745698495789,3.678,1812.8,1812.7,14.50800883]
[1745698496088,3.678,1812.8,1812.7,13.40503883]
[1745698496990,3.678,1812.8,1812.7,14.50800883]
[1745698497291,3.678,1812.8,1812.7,13.40503883]
[1745698498992,3.678,1812.8,1812.7,14.50800883]
[1745698500192,4.78091,1812.8,1812.7,13.40503883]
[1745698503589,3.678,1812.8,1812.7,13.40503883]
[1745698503789,3.678,1812.8,1812.7,14.50800883]
[1745698505095,4.78091,1812.8,1812.7,14.50800883]
[1745698505793,4.78091,1812.8,1812.7,13.40503883]
[1745698506197,4.78091,1812.8,1812.7,11.92303883]
[1745698506493,4.78091,1812.8,1812.7,7.31571641]
[1745698507295,6.40051,1812.8,1812.7,5.58381641]
[1745698507595,11.40051,1812.8,1812.7,5.58381641]
[1745698507899,6.40051,1812.8,1812.7,5.58381641]
[1745698508098,6.40051,1812.8,1812.7,0.27581641]
[1745698508289,1.10297,1812.7,1812.6,0.27581641]
[1745698508595,1.10303,1812.6,1812.5,0.27581641]
[1745698508793,2.55883,1812.6,1812.5,0.27581641]
[1745698508995,2.55883,1812.6,1812.5,2.00661641]
[1745698509196,2.55883,1812.6,1812.5,7.31461641]
[1745698509787,4.15833,1812.6,1812.5,7.31461641]
[1745698511099,4.15833,1812.6,1812.5,2.00661641]
[1745698512090,4.15833,1812.6,1812.5,7.31461641]
[1745698516199,4.15833,1812.6,1812.5,2.00661641]
[1745698517298,4.15833,1812.6,1812.5,7.31461641]
[1745698518598,1.10303,1812.6,1812.5,11.92193883]
[1745698518899,3.678,1812.8,1812.5,13.02497883]
[1745698519104,4.78097,1812.8,1812.6,2.7834]
[1745698519402,1.10297,1812.7,1812.6,4.3918]
[1745698519602,1.10297,1812.7,1812.6,7.39072242]
[1745698519798,1.10297,1812.7,1812.6,10.59852242]
[1745698520600,1.10297,1812.7,1812.6,7.39072242]
[1745698523803,4.78093,1812.8,1812.7,0.27581641]
[1745698524103,4.78093,1812.8,1812.7,3.48361641]
[1745698525301,4.78093,1812.8,1812.7,8.79161641]
[1745698526310,4.78093,1812.8,1812.7,5.58381641]
[1745698527812,3.678,1812.8,1812.7,6.68678641]
[1745698528107,4.78091,1812.8,1812.7,13.39893883]
[1745698529101,4.78091,1812.8,1812.7,10.19113883]
[1745698529308,4.78091,1812.8,1812.7,5.58381641]
[1745698534209,4.78091,1812.8,1812.7,7.17231641]
[1745698540315,7.98871,1812.8,1812.7,5.58381641]
[1745698540707,12.98871,1812.8,1812.7,2.37601641]
[1745698541216,1.10309,1812.5,1812.4,1.7318]
[1745698541511,4.77209,1812.5,1812.4,6.33912242]
[1745698542013,4.77209,1812.5,1812.4,4.60732242]
[1745698542209,4.77209,1812.5,1812.4,9.91532242]
[1745698542415,4.77209,1812.5,1812.4,5.308]
[1745698543214,1.10315,1812.4,1812.3,4.9133]
[1745698543414,4.18355,1812.4,1812.3,9.52062242]
[1745698543909,4.18355,1812.4,1812.3,4.9133]
[1745698544102,4.18355,1812.4,1812.3,10.2213]
[1745698544917,4.18355,1812.4,1812.3,8.5158]
[1745698544918,9.18355,1812.4,1812.3,8.5158]
[1745698545216,12.39135,1812.4,1812.3,3.98672]
[1745698545410,12.39135,1812.4,1812.3,1.75427]
[1745698546208,1.10333,1812.1,1812.0,1.6193]
[1745698546409,4.77233,1812.1,1812.0,1.6193]
[1745698547421,6.14223,1812.1,1812.0,1.6193]
[1745698548112,6.14223,1812.1,1812.0,6.9273]
[1745698548820,6.14223,1812.1,1812.0,5.308]
[1745698549411,7.72773,1812.1,1812.0,5.308]
[1745698555525,6.14223,1812.1,1812.0,5.308]
[1745698559326,4.77233,1812.1,1812.0,9.91532242]
[1745698559624,4.77233,1812.1,1812.0,12.91282242]
[1745698560223,3.669,1812.1,1812.0,12.91282242]
[1745698560412,3.669,1812.1,1812.0,16.12062242]
[1745698560617,3.669,1812.1,1812.0,17.75752242]
[1745698562125,3.669,1812.1,1812.0,18.86091242]
[1745698562725,4.77233,1812.1,1812.0,17.75752242]
[1745698564227,3.669,1812.1,1812.0,17.75752242]
[1745698565425,3.669,1812.1,1812.0,18.86091242]
[1745698565824,3.669,1812.1,1812.0,17.75752242]
[1745698566024,4.77233,1812.1,1812.0,17.75752242]
[1745698566430,4.77233,1812.1,1812.0,11.6757]
[1745698569027,4.77233,1812.1,1812.0,8.4679]
[1745698569230,4.77233,1812.1,1812.0,6.9449]
[1745698569426,6.45063,1812.1,1812.0,6.9449]
[1745698570319,4.77233,1812.1,1812.0,6.9449]
[1745698571132,1.10346,1811.9,1811.8,5.308]
[1745698572331,2.53446,1811.9,1811.8,5.308]
[1745698572628,2.53446,1811.9,1811.8,12.76312242]
[1745698572925,10.74226,1811.9,1811.8,3.86084]
[1745698573128,10.74226,1811.9,1811.4,1.5828]
[1745698573129,1.1037,1811.5,1811.4,1.5828]
[1745698573329,3.669,1811.5,1811.2,9.28912242]
[1745698573532,1.1038,1811.4,1811.3,1.5828]
[1745698574028,4.77274,1811.5,1811.3,6.19012242]
[1745698574225,3.669,1811.5,1811.3,12.60192242]
[1745698574527,3.669,1811.5,1811.4,1.5828]
[1745698574731,3.669,1811.5,1811.4,2.9881]
[1745698575029,4.7727,1811.5,1811.4,6.19012242]
[1745698575229,6.2008,1811.5,1811.4,1.5828]
[1745698575431,5.0971,1811.5,1811.4,1.5828]
[1745698575630,3.669,1811.5,1811.4,6.19012242]
[1745698576333,4.7727,1811.5,1811.4,1.5828]
[1745698576630,3.669,1811.5,1811.4,6.19012242]
[1745698577029,4.7727,1811.5,1811.4,6.19012242]
[1745698577332,3.669,1811.5,1811.4,6.19012242]
[1745698577538,3.2078,1811.9,1811.4,6.19012242]
[1745698577829,4.77353,1811.8,1811.6,3.2078]
[1745698578044,1.4925,1811.8,1811.7,1.6927]
[1745698578238,5.1625,1811.8,1811.7,1.6927]
[1745698578529,6.26602,1811.8,1811.7,6.30002242]
[1745698578836,7.69222,1811.8,1811.7,6.30002242]
[1745698579132,7.69222,1811.8,1811.7,11.60802242]
[1745698579734,6.5887,1811.8,1811.7,11.60802242]
[1745698579935,6.5887,1811.8,1811.7,12.71160242]
[1745698580235,6.5887,1811.8,1811.7,11.60802242]
[1745698580734,6.5887,1811.8,1811.7,12.71160242]
[1745698580934,6.5887,1811.8,1811.7,11.60802242]
[1745698581236,7.69222,1811.8,1811.7,6.30002242]
[1745698581537,6.5887,1811.8,1811.7,6.30002242]
[1745698582336,6.5887,1811.8,1811.7,7.40360242]
[1745698582636,3.2078,1812.5,1811.7,6.6927]
[1745698582836,4.6365,1812.4,1812.3,3.2078]
[1745698583132,4.10205,1812.4,1812.3,3.2078]
[1745698583534,4.10205,1812.4,1812.3,4.8221]
[1745698583735,2.9989,1812.4,1812.3,4.8221]
[1745698583930,2.9989,1812.4,1812.3,10.53263242]
[1745698584135,6.6689,1812.4,1812.3,10.53263242]
[1745698584830,2.9989,1812.4,1812.3,10.53263242]
[1745698585235,2.9989,1812.4,1812.3,15.84063242]
[1745698585423,2.9989,1812.4,1812.3,14.73742242]
[1745698585825,4.10205,1812.4,1812.3,14.73742242]
[1745698586136,4.10205,1812.4,1812.3,3.2078]
[1745698586337,5.66585,1812.4,1812.3,3.2078]
[1745698587637,1.10327,1812.2,1812.1,3.2078]
[1745698587840,4.77227,1812.2,1812.1,3.2078]
[1745698588031,1.10338,1812.1,1811.9,1.5638]
[1745698588242,5.86198,1812.1,1811.9,1.5638]
[1745698589034,1.10339,1812.0,1811.9,6.8718]
[1745698589241,2.76179,1812.0,1811.9,6.8718]
[1745698589740,1.6584,1812.0,1811.9,6.8718]
[1745698590840,4.20358,1812.1,1811.9,6.8718]
[1745698591041,4.20358,1812.1,1812.0,1.7287]
[1745698591638,5.78018,1812.1,1812.0,1.7287]
[1745698600751,4.20358,1812.1,1812.0,1.7287]
[1745698601149,4.20358,1812.1,1812.0,7.0367]
[1745698602250,3.669,1812.2,1812.0,6.33602242]
[1745698602454,3.669,1812.2,1812.1,3.1765]
[1745698602646,3.669,1812.2,1812.1,4.6467]
[1745698602952,2.75845,1812.1,1811.6,3.2078]
[1745698603151,1.10358,1811.7,1811.6,9.53562242]
[1745698603358,1.10358,1811.7,1811.6,6.32782242]
[1745698603550,1.10358,1811.7,1811.6,4.60732242]
[1745698603749,1.10364,1811.6,1811.5,1.7205]
[1745698604248,2.77954,1811.6,1811.5,7.0285]
[1745698605548,2.77954,1811.6,1811.5,5.308]
[1745698605855,2.77954,1811.6,1811.5,9.91532242]
[1745698606052,1.10364,1811.6,1811.5,9.91532242]
[1745698606254,1.10364,1811.6,1811.5,11.63582242]
[1745698608358,1.10364,1811.6,1811.5,7.0285]
[1745698608562,2.82924,1811.6,1811.5,7.0285]
[1745698611358,1.10364,1811.6,1811.5,11.63582242]
[1745698616959,4.17891,1811.7,1811.5,14.84362242]
[1745698617159,4.17891,1811.7,1811.6,1.6116]
[1745698617556,4.17891,1811.7,1811.6,6.21892242]
[1745698621463,3.669,1811.8,1811.6,6.21892242]
[1745698621660,3.669,1811.8,1811.7,1.5795]
[1745698621860,3.669,1811.8,1811.7,3.0877]
[1745698622056,3.669,1811.8,1811.7,13.00302242]
[1745698623065,3.669,1811.8,1811.7,14.10660242]
[1745698623266,3.669,1811.8,1811.7,13.00302242]
[1745698624565,3.669,1811.8,1811.7,5.308]
[1745698624566,4.77252,1811.8,1811.7,5.308]
[1745698624758,9.37912,1811.8,1811.7,5.308]
[1745698625158,1.10364,1811.6,1811.5,3.177]
[1745698625370,1.10364,1811.6,1811.5,7.78432242]
[1745698625666,2.67802,1811.7,1811.5,7.78432242]
[1745698625858,2.67802,1811.7,1811.6,1.7034]
[1745698631765,1.10362,1811.7,1811.6,1.7034]
[1745698634973,1.10362,1811.7,1811.6,6.31072242]
[1745698642380,1.10362,1811.7,1811.6,1.7034]
[1745698642578,2.78002,1811.7,1811.6,1.7034]
[1745698644884,1.10362,1811.7,1811.6,1.7034]
[1745698645083,1.10362,1811.7,1811.6,6.31072242]
[1745698645385,7.80476,1811.8,1811.6,6.31072242]
[1745698645582,7.80476,1811.8,1811.7,1.6709]
[1745698646686,3.669,1811.8,1811.7,1.6709]
[1745698646878,4.77252,1811.8,1811.7,1.6709]
[1745698647078,4.77252,1811.8,1811.7,6.9789]
[1745698647485,6.33732,1811.8,1811.7,6.9789]
[1745698649386,1.5104,1812.1,1811.7,19.79402242]
[1745698649587,3.669,1812.2,1812.0,3.2078]
[1745698649782,6.8363,1812.5,1812.2,1.10323]
[1745698649983,6.31949,1812.5,1812.3,4.7721]
[1745698650183,6.31949,1812.5,1812.4,1.5643]
[1745698650586,6.31949,1812.5,1812.4,6.17162242]
[1745698651082,6.31949,1812.5,1812.4,1.5643]
[1745698651289,6.31949,1812.5,1812.4,6.8723]
[1745698651491,11.31949,1812.5,1812.4,5.308]
[1745698651682,13.01039,1812.5,1812.4,5.308]
[1745698651881,8.01039,1812.5,1812.4,5.308]
[1745698652084,1.10321,1812.3,1812.2,1.582]
[1745698652793,2.56561,1812.3,1812.2,1.582]
[1745698653091,2.56561,1812.3,1812.2,6.89]
[1745698653597,1.4624,1812.3,1812.2,6.89]
[1745698655199,2.56561,1812.3,1812.2,6.89]
[1745698656094,3.669,1812.5,1812.2,11.49732242]
[1745698656298,3.669,1812.5,1812.3,1.6692]
[1745698656299,2.67317,1812.4,1812.3,1.6692]
[1745698656701,1.57,1812.4,1812.3,1.6692]
[1745698657099,1.57,1812.4,1812.3,6.9772]
[1745698657499,1.57,1812.4,1812.3,11.58452242]
[1745698658090,3.669,1812.5,1812.3,12.68772242]
[1745698658294,3.669,1812.5,1812.4,1.6473]
[1745698658495,3.669,1812.5,1812.4,4.24175]
[1745698658700,3.669,1812.5,1812.4,8.84907242]
[1745698658900,3.669,1812.5,1812.4,8.85777242]
[1745698659203,3.669,1812.5,1812.4,17.37357242]
[1745698659604,3.669,1812.5,1812.4,22.37357242]
[1745698660399,3.669,1812.5,1812.4,17.37357242]
[1745698662808,6.31505,1812.8,1812.6,1.10301]
[1745698663003,3.667,1812.8,1812.7,1.10297]
[1745698663206,4.76991,1812.8,1812.7,3.1704]
[1745698663411,1.10309,1812.5,1812.4,8.5245]
[1745698663711,1.10309,1812.5,1812.4,5.3167]
[1745698664013,4.77009,1812.5,1812.4,5.3167]
[1745698664811,4.77009,1812.5,1812.4,6.9694]
[1745698666113,3.667,1812.5,1812.4,11.57672242]
[1745698667111,4.77009,1812.5,1812.4,11.57672242]
[1745698667707,3.667,1812.5,1812.4,11.57672242]
[1745698668316,3.667,1812.5,1812.4,12.67987242]
[1745698668612,3.667,1812.5,1812.4,11.57672242]
[1745698669718,3.667,1812.5,1812.4,12.67987242]
[1745698671110,4.77009,1812.5,1812.4,11.57672242]
[1745698671307,3.667,1812.5,1812.4,11.57672242]
[1745698671916,3.667,1812.5,1812.4,12.67987242]
[1745698675518,3.666,1812.7,1812.6,1.10298]
[1745698675818,1.10303,1812.6,1812.5,1.5675]
[1745698676215,1.10303,1812.6,1812.5,11.48282242]
[1745698677023,7.79042,1812.7,1812.5,12.58588242]
[1745698677218,7.79042,1812.7,1812.6,1.5675]
[1745698678819,9.48192,1812.7,1812.6,1.5675]
[1745698681219,1.10303,1812.6,1812.5,5.308]
[1745698681420,2.74253,1812.6,1812.5,5.308]
[1745698686521,2.74253,1812.6,1812.5,9.91532242]
[1745698686522,1.10303,1812.6,1812.5,9.91532242]
[1745698686823,7.79041,1812.7,1812.5,9.91532242]
[1745698687023,7.79041,1812.7,1812.5,11.60162242]
[1745698687218,7.79041,1812.7,1812.6,1.7275]
[1745698688318,9.42671,1812.7,1812.6,1.7275]
[1745698694043,1.10303,1812.6,1812.5,5.3167]
[1745698694338,2.68983,1812.6,1812.5,5.3167]
[1745698697120,2.68983,1812.6,1812.5,0.0087]
[1745698699433,10.89763,1812.6,1812.5,1e-05]
[1745698699936,10.9867239,1812.6,1812.5,1e-05]
[1745698700334,10.89763,1812.6,1812.5,1e-05]
[1745698700528,10.9867267,1812.6,1812.5,1e-05]
[1745698701635,5.9867267,1812.6,1812.5,1e-05]
[1745698703041,10.9867267,1812.6,1812.5,1e-05]
[1745698707341,10.9867314,1812.6,1812.5,1e-05]
[1745698707841,5.9867314,1812.6,1812.5,1e-05]
[1745698709043,5.98672681,1812.6,1812.5,1e-05]
[1745698710456,5.89763,1812.6,1812.5,1e-05]
[1745698710756,5.98672598,1812.6,1812.5,1e-05]
[1745698712056,5.98672847,1812.6,1812.5,1e-05]
[1745698712857,2.77892847,1812.6,1812.5,1e-05]
[1745698713058,5.98672847,1812.6,1812.5,1e-05]
[1745698714058,1.10333,1812.1,1812.0,1.7045]
[1745698714259,1.10333,1812.1,1812.0,6.31182242]
[1745698714451,1.10333,1812.1,1812.0,11.31182242]
[1745698715157,1.10333,1812.1,1812.0,16.61982242]
[1745698717857,1.10333,1812.1,1812.0,11.61982242]
[1745698718360,4.31113,1812.1,1812.0,11.61982242]
[1745698718959,9.28593,1812.1,1812.0,7.0125]
[1745698719154,9.28593,1812.1,1812.0,1.7045]
[1745698720558,9.28593,1812.1,1812.0,6.31182242]
[1745698720559,4.31113,1812.1,1812.0,6.31182242]
[1745698720759,4.31113,1812.1,1812.0,7.89752242]
[1745698720962,1.10333,1812.1,1812.0,7.89752242]
[1745698721166,1.10333,1812.1,1812.0,13.20552242]
[1745698736862,1.10333,1812.1,1812.0,11.61982242]
[1745698737063,5.89653,1812.1,1812.0,11.61982242]
[1745698737267,5.89653,1812.1,1812.0,6.31182242]
[1745698739170,5.89653,1812.1,1812.0,11.61982242]
[1745698740172,5.89653,1812.1,1812.0,6.31182242]
[1745698741070,2.68873,1812.1,1812.0,6.31182242]
[1745698741459,5.89653,1812.1,1812.0,6.31182242]
[1745698741666,4.31113,1812.1,1812.0,6.31182242]
[1745698742270,4.31113,1812.1,1812.0,11.61982242]
[1745698743977,1.10333,1812.1,1812.0,11.61982242]
[1745698746678,5.90943,1812.1,1812.0,7.0125]